fUST/lending_fUST_20241217
["ID","MTS","AMOUNT","RATE_DAILY","PERIOD"]
[345695148,1734426636760,-1867.7,0.00024931,6]
[345695149,1734426636769,-500.0,0.00024931,6]
[345695150,1734426636778,-500.0,0.00024931,6]
[345695151,1734426636788,-561.5592333,0.00024931,6]
[345695152,1734426636798,-500.0,0.00024931,6]
[345695153,1734426636807,-500.0,0.00024931,6]
[345695154,1734426636817,-500.0,0.00024931,6]
[345695155,1734426636827,-500.0,0.00024931,6]
[345695156,1734426636836,-500.0,0.00024931,6]
[345695157,1734426636846,-1821.85,0.00024931,2]
[345695158,1734426636855,-1529.71,0.00024931,6]
[345695159,1734426636865,-835.55,0.00024931,6]
[345695160,1734426636874,-1852.27,0.00024931,6]
[345695161,1734426636883,-500.0,0.00024931,6]
[345695162,1734426636893,-1305.89,0.00024931,6]
[345695163,1734426636903,-1846.95,0.00024931,6]
[345695164,1734426636912,-564.06547384,0.00024931,6]
[345695165,1734426636922,-703.85,0.00024931,6]
[345695166,1734426636931,-500.0,0.00024931,6]
[345695167,1734426636940,-500.0,0.00024931,6]
[345695168,1734426636950,-500.0,0.00024931,6]
[345695169,1734426636959,-500.0,0.00024931,6]
[345695170,1734426636971,-500.0,0.00024931,6]
[345695171,1734426636980,-500.0,0.00024931,6]
[345695172,1734426636989,-500.0,0.00024931,6]
[345695173,1734426637002,-510.99,0.00024931,6]
[345695174,1734426637011,-500.0,0.00024931,6]
[345695175,1734426637021,-1526.26,0.00024931,6]
[345695176,1734426637030,-538.11,0.00024931,6]
[345695177,1734426637043,-500.0,0.00024931,6]
[345695178,1734426637053,-500.0,0.00024931,6]
[345695179,1734426637063,-1177.46,0.00024931,6]
[345695180,1734426637072,-500.0,0.00024931,6]
[345695181,1734426637082,-500.0,0.00024931,6]
[345695182,1734426637092,-500.0,0.00024931,6]
[345695183,1734426637102,-899.54,0.00024931,6]
[345695184,1734426637111,-500.0,0.00024931,6]
[345695185,1734426637121,-703.51,0.00024931,2]
[345695186,1734426637130,-500.0,0.00024931,6]
[345695187,1734426637140,-790.81,0.00024931,6]
[345695188,1734426637149,-366.28046231,0.00024931,6]
[345695189,1734426637159,-502.35,0.00024931,6]
[345695190,1734426637168,-500.0,0.00024931,6]
[345695191,1734426637178,-1753.87,0.00024931,6]
[345695192,1734426637188,-500.0,0.00024931,6]
[345695193,1734426637197,-500.0,0.00024931,6]
[345695194,1734426637207,-500.0,0.00024931,6]
[345695195,1734426637217,-500.0,0.00024931,6]
[345695196,1734426637229,-500.0,0.00024931,6]
[345695197,1734426637240,-500.0,0.00024931,6]
[345695198,1734426637252,-500.0,0.00024931,6]
[345695199,1734426637261,-2060.34,0.00024931,6]
[345695200,1734426637271,-500.0,0.00024931,6]
[345695201,1734426637280,-500.0,0.00024931,6]
[345695202,1734426637290,-500.0,0.00024931,6]
[345695203,1734426637303,-2075.79,0.00024931,6]
[345695204,1734426637313,-500.0,0.00024931,6]
[345695205,1734426637322,-1126.73,0.00024931,6]
[345695206,1734426637333,-597.17,0.00024931,6]
[345695207,1734426637343,-500.0,0.00024931,6]
[345695208,1734426637352,-1000.0,0.00024931,2]
[345695209,1734426637362,-1432.56,0.00024931,6]
[345695210,1734426637371,-1896.07,0.00024931,6]
[345695211,1734426637381,-1426.8,0.00024931,6]
[345695212,1734426637390,-1580.55,0.00024931,6]
[345695213,1734426637400,-236.27502119,0.00024931,6]
[345695214,1734426637410,-1147.09,0.00024931,6]
[345695215,1734426637419,-2173.19,0.00024931,6]
[345695216,1734426637429,-1379.04,0.00024931,6]
[345695217,1734426637439,-893.35,0.00024931,6]
[345695218,1734426637448,-500.0,0.00024931,6]
[345695219,1734426637457,-301.69,0.00024931,6]
[345695220,1734426637467,-1152.23,0.00024931,6]
[345695221,1734426637477,-953.55,0.00024931,6]
[345695222,1734426637487,-5415.24,0.00024931,6]
[345695223,1734426637499,-500.0,0.00024931,6]
[345695224,1734426637509,-1407.33,0.00024931,6]
[345695225,1734426637519,-741.17,0.00024931,6]
[345695226,1734426637528,-2256.7,0.00024931,6]
[345695227,1734426637538,-500.0,0.00024931,6]
[345695228,1734426637547,-500.0,0.00024931,6]
[345695229,1734426637557,-850.42,0.00024931,6]
[345695230,1734426637567,-636.67,0.00024931,6]
[345695231,1734426637577,-500.0,0.00024931,6]
[345695232,1734426637586,-500.0,0.00024931,6]
[345695233,1734426637596,-609.69,0.00024931,6]
[345695234,1734426637606,-1025.0,0.00024931,6]
[345695235,1734426637615,-2058.25,0.00024931,6]
[345695236,1734426637624,-732.17,0.00024931,6]
[345695237,1734426637634,-500.0,0.00024931,6]
[345695238,1734426637643,-542.98,0.00024931,6]
[345695239,1734426637653,-500.0,0.00024931,6]
[345695240,1734426637662,-1514.28,0.00024931,6]
[345695241,1734426637672,-500.0,0.00024931,6]
[345695242,1734426637682,-2793.89,0.00024931,6]
[345695243,1734426637692,-34745.14,0.00024931,6]
[345695244,1734426637702,-529.88,0.00024931,6]
[345695245,1734426637712,-500.0,0.00024931,6]
[345695246,1734426637721,-500.0,0.00024931,6]
[345695247,1734426637731,-500.0,0.00024931,6]
[345695248,1734426637741,-614.62,0.00024931,6]
[345695249,1734426637753,-500.0,0.00024931,6]
[345695250,1734426637762,-500.0,0.00024931,6]
[345695251,1734426637772,-1788.31,0.00024931,6]
[345695252,1734426637781,-500.0,0.00024931,6]
[345695253,1734426637790,-500.0,0.00024931,6]
[345695254,1734426637800,-651.37,0.00024931,6]
[345695255,1734426637810,-500.0,0.00024931,6]
[345695256,1734426637819,-513.20539228,0.00024931,6]
[345695257,1734426637829,-500.0,0.00024931,6]
[345695258,1734426637838,-2120.77,0.00024931,6]
[345695259,1734426637848,-500.0,0.00024931,6]
[345695260,1734426637857,-1300.08,0.00024931,6]
[345695261,1734426637867,-2520.34,0.00024931,6]
[345695263,1734426637876,-500.0,0.00024931,6]
[345695264,1734426637886,-955.17,0.00024931,6]
[345695265,1734426637895,-13920.98,0.00024931,6]
[345695266,1734426637904,-500.0,0.00024931,6]
[345695267,1734426637913,-500.0,0.00024931,6]
[345695268,1734426637923,-6976.34,0.00024931,6]
[345695269,1734426637932,-1830.31,0.00024931,6]
[345695270,1734426637941,-815.82,0.00024931,6]
[345695271,1734426637951,-500.0,0.00024931,6]
[345695272,1734426637960,-500.0,0.00024931,6]
[345695273,1734426637970,-500.0,0.00024931,6]
[345695274,1734426637979,-559.39468892,0.00024931,6]
[345695275,1734426637988,-1948.13,0.00024931,6]
[345695276,1734426637998,-500.0,0.00024931,6]
[345695277,1734426638007,-2229.6,0.00024931,6]
[345695278,1734426638017,-500.0,0.00024931,6]
[345695279,1734426638026,-500.0,0.00024931,6]
[345695280,1734426638036,-8357.26,0.00024931,6]
[345695281,1734426638045,-500.0,0.00024931,6]
[345695282,1734426638055,-755.57,0.00024931,6]
[345695283,1734426638065,-516.00550121,0.00024931,6]
[345695284,1734426638075,-1573.96,0.00024931,6]
[345695285,1734426638084,-563.81404732,0.00024931,6]
[345695286,1734426638094,-500.0,0.00024931,6]
[345695287,1734426638104,-556.06,0.00024931,6]
[345695288,1734426638113,-1285.01,0.00024931,6]
[345695289,1734426638122,-500.0,0.00024931,6]
[345695290,1734426638132,-500.0,0.00024931,6]
[345695291,1734426638141,-11928.35,0.00024931,5]
[345695292,1734426638151,-1233.52,0.00024931,6]
[345695293,1734426638161,-696.73,0.00024931,6]
[345695294,1734426638170,-500.0,0.00024931,6]
[345695296,1734426638180,-424.15149848,0.00024931,6]
[345695298,1734426638189,-500.0,0.00024931,6]
[345695300,1734426638199,-712.45,0.00024931,6]
[345695302,1734426638208,-9212.12,0.00024931,6]
[345695304,1734426638217,-500.0,0.00024931,6]
[345695306,1734426638228,-500.0,0.00024931,6]
[345695308,1734426638241,-890.33,0.00024931,6]
[345695310,1734426638253,-928.17,0.00024931,6]
[345695313,1734426638263,-557.17,0.00024931,6]
[345695315,1734426638273,-4871.69,0.00024931,6]
[345695317,1734426638283,-500.0,0.00024931,6]
[345695319,1734426638293,-152.0,0.00024932,2]
[345695321,1734426638303,-420.0,0.00024967,2]
[345695323,1734426638314,-151.0,0.00025,17]
[345695325,1734426638323,-2160.248785,0.00025,2]
[345695327,1734426638332,-151.0,0.00025,5]
[345695329,1734426638342,-152.0,0.00025,2]
[345695331,1734426638351,-151.0,0.000251,20]
[345695333,1734426638361,-605.08,0.0002517,2]
[345695335,1734426638371,-151.0,0.000252,15]
[345695337,1734426638380,-151.0,0.000252,15]
[345695339,1734426638389,-151.0,0.000252,11]
[345695341,1734426638399,-263.48887678,0.00025204,2]
[345695344,1734426638410,-222.4138468,0.00025204,2]
[345695346,1734426638419,-500.0,0.00025204,2]
[345695348,1734426638428,-277.97271613,0.00025204,2]
[345695349,1734426638438,-495.27618941,0.00025205,6]
[345695351,1734426638447,-500.0,0.00025205,6]
[345695354,1734426638457,-581.91,0.00025205,6]
[345695356,1734426638467,-3000.0,0.00025205,30]
[345695358,1734426638476,-500.0,0.00025205,6]
[345695360,1734426638485,-395.57229419,0.00025205,6]
[345695362,1734426638494,-500.0,0.00025205,6]
[345695364,1734426638505,-500.0,0.00025205,6]
[345695366,1734426638514,-500.0,0.00025205,6]
[345695368,1734426638524,-500.0,0.00025205,6]
[345695370,1734426638534,-253.00960237,0.00025205,6]
[345695372,1734426638543,-500.0,0.00025205,6]
[345695374,1734426638553,-500.0,0.00025205,6]
[345695376,1734426638563,-955.71,0.00025205,6]
[345695378,1734426638573,-736.04,0.00025205,6]
[345695380,1734426638583,-500.0,0.00025205,6]
[345695382,1734426638593,-500.0,0.00025205,6]
[345695384,1734426638603,-1902.19,0.00025205,6]
[345695386,1734426638612,-913.53,0.00025205,6]
[345695388,1734426638622,-500.0,0.00025205,6]
[345695390,1734426638631,-500.0,0.00025205,6]
[345695392,1734426638640,-500.0,0.00025205,6]
[345695394,1734426638649,-500.0,0.00025205,6]
[345695396,1734426638659,-500.0,0.00025205,6]
[345695398,1734426638668,-500.0,0.00025205,6]
[345695400,1734426638678,-190.73368732,0.00025205,6]
[345695402,1734426638687,-500.0,0.00025205,6]
[345695404,1734426638697,-500.0,0.00025205,6]
[345695406,1734426638707,-1255.28,0.00025205,6]
[345695408,1734426638716,-500.0,0.00025205,6]
[345695410,1734426638725,-500.0,0.00025205,6]
[345695412,1734426638735,-500.0,0.00025205,6]
[345695413,1734426638744,-500.0,0.00025205,6]
[345695415,1734426638758,-500.0,0.00025205,6]
[345695416,1734426638767,-666.04,0.00025205,6]
[345695417,1734426638777,-500.0,0.00025205,6]
[345695418,1734426638787,-500.0,0.00025205,6]
[345695419,1734426638796,-500.0,0.00025205,6]
[345695420,1734426638806,-500.0,0.00025205,6]
[345695421,1734426638815,-1162.05,0.00025205,6]
[345695422,1734426638825,-500.0,0.00025205,6]
[345695423,1734426638834,-789.99,0.00025205,6]
[345695424,1734426638844,-500.0,0.00025205,6]
[345695425,1734426638854,-295.09371082,0.00025205,6]
[345695426,1734426638863,-838.31,0.00025205,6]
[345695427,1734426638872,-500.0,0.00025205,6]
[345695428,1734426638882,-500.0,0.00025205,6]
[345695429,1734426638891,-856.48,0.00025205,6]
[345695430,1734426638901,-244.17,0.00025205,6]
[345695431,1734426638911,-1658.38,0.00025205,6]
[345695432,1734426638961,-500.0,0.00025205,6]
[345695433,1734426638971,-398.63604538,0.00025205,6]
[345695434,1734426638980,-1867.7,0.00025205,6]
[345695435,1734426638990,-500.0,0.00025205,6]
[345695436,1734426639003,-500.0,0.00025205,6]
[345695437,1734426639017,-500.0,0.00025205,6]
[345695438,1734426639027,-500.0,0.00025205,6]
[345695439,1734426639036,-500.0,0.00025205,6]
[345695440,1734426639045,-500.0,0.00025205,6]
[345695441,1734426639055,-500.0,0.00025205,6]
[345695442,1734426639064,-1821.85,0.00025205,2]
[345695443,1734426639074,-1529.71,0.00025205,6]
[345695444,1734426639083,-835.55,0.00025205,6]
[345695445,1734426639092,-1852.27,0.00025205,6]
[345695446,1734426639101,-500.0,0.00025205,6]
[345695447,1734426639110,-1305.89,0.00025205,6]
[345695448,1734426639120,-1846.95,0.00025205,6]
[345695449,1734426639129,-703.85,0.00025205,6]
[345695450,1734426639138,-500.0,0.00025205,6]
[345695451,1734426639147,-500.0,0.00025205,6]
[345695452,1734426639157,-500.0,0.00025205,6]
[345695453,1734426639166,-500.0,0.00025205,6]
[345695454,1734426639176,-500.0,0.00025205,6]
[345695455,1734426639185,-500.0,0.00025205,6]
[345695456,1734426639194,-500.0,0.00025205,6]
[345695457,1734426639203,-510.99,0.00025205,6]
[345695458,1734426639212,-500.0,0.00025205,6]
[345695459,1734426639222,-1526.26,0.00025205,6]
[345695460,1734426639233,-538.11,0.00025205,6]
[345695461,1734426639243,-337.86992037,0.00025205,6]
[345695462,1734426639255,-500.0,0.00025205,6]
[345695463,1734426639264,-1177.46,0.00025205,6]
[345695464,1734426639275,-500.0,0.00025205,6]
[345695465,1734426639284,-500.0,0.00025205,6]
[345695466,1734426639294,-500.0,0.00025205,6]
[345695467,1734426639303,-899.54,0.00025205,6]
[345695468,1734426639313,-500.0,0.00025205,6]
[345695469,1734426639323,-703.51,0.00025205,2]
[345695470,1734426639332,-500.0,0.00025205,6]
[345695471,1734426639341,-790.81,0.00025205,6]
[345695472,1734426639351,-502.35,0.00025205,6]
[345695473,1734426639360,-500.0,0.00025205,6]
[345695474,1734426639369,-1753.87,0.00025205,6]
[345695475,1734426639379,-500.0,0.00025205,6]
[345695476,1734426639388,-500.0,0.00025205,6]
[345695477,1734426639397,-500.0,0.00025205,6]
[345695478,1734426639407,-214.69334718,0.00025205,6]
[345695479,1734426639416,-500.0,0.00025205,6]
[345695480,1734426639426,-500.0,0.00025205,6]
[345695481,1734426639435,-500.0,0.00025205,6]
[345695482,1734426639444,-2060.34,0.00025205,6]
[345695483,1734426639454,-500.0,0.00025205,6]
[345695484,1734426639463,-500.0,0.00025205,6]
[345695485,1734426639472,-500.0,0.00025205,6]
[345695486,1734426639482,-2075.79,0.00025205,6]
[345695487,1734426639491,-500.0,0.00025205,6]
[345695488,1734426639503,-1126.73,0.00025205,6]
[345695489,1734426639513,-597.17,0.00025205,6]
[345695490,1734426639523,-500.0,0.00025205,6]
[345695491,1734426639532,-1000.0,0.00025205,2]
[345695492,1734426639541,-1432.56,0.00025205,6]
[345695493,1734426639551,-1896.07,0.00025205,6]
[345695494,1734426639560,-1426.8,0.00025205,6]
[345695495,1734426639569,-1580.55,0.00025205,6]
[345695496,1734426639579,-1147.09,0.00025205,6]
[345695497,1734426639588,-2173.19,0.00025205,6]
[345695498,1734426639597,-1379.04,0.00025205,6]
[345695499,1734426639607,-893.35,0.00025205,6]
[345695500,1734426639616,-500.0,0.00025205,6]
[345695501,1734426639625,-1152.23,0.00025205,6]
[345695502,1734426639635,-953.55,0.00025205,6]
[345695503,1734426639644,-5415.24,0.00025205,6]
[345695504,1734426639653,-500.0,0.00025205,6]
[345695505,1734426639662,-1407.33,0.00025205,6]
[345695506,1734426639672,-741.17,0.00025205,6]
[345695507,1734426639681,-2256.7,0.00025205,6]
[345695508,1734426639690,-500.0,0.00025205,6]
[345695509,1734426639700,-500.0,0.00025205,6]
[345695510,1734426639709,-850.42,0.00025205,6]
[345695511,1734426639719,-636.67,0.00025205,6]
[345695512,1734426639729,-500.0,0.00025205,6]
[345695513,1734426639739,-500.0,0.00025205,6]
[345695514,1734426639748,-609.69,0.00025205,6]
[345695515,1734426639757,-1025.0,0.00025205,6]
[345695516,1734426639766,-2058.25,0.00025205,6]
[345695517,1734426639775,-732.17,0.00025205,6]
[345695518,1734426639784,-500.0,0.00025205,6]
[345695519,1734426639793,-542.98,0.00025205,6]
[345695520,1734426639802,-500.0,0.00025205,6]
[345695521,1734426639813,-1514.28,0.00025205,6]
[345695522,1734426639823,-500.0,0.00025205,6]
[345695523,1734426639832,-2793.89,0.00025205,6]
[345695524,1734426639841,-34745.14,0.00025205,6]
[345695525,1734426639850,-529.88,0.00025205,6]
[345695526,1734426639859,-500.0,0.00025205,6]
[345695528,1734426639869,-500.0,0.00025205,6]
[345695529,1734426639878,-500.0,0.00025205,6]
[345695530,1734426639887,-614.62,0.00025205,6]
[345695531,1734426639896,-500.0,0.00025205,6]
[345695532,1734426639904,-500.0,0.00025205,6]
[345695533,1734426639911,-1788.31,0.00025205,6]
[345695534,1734426639917,-500.0,0.00025205,6]
[345695535,1734426639926,-500.0,0.00025205,6]
[345695536,1734426639933,-651.37,0.00025205,6]
[345695537,1734426639940,-500.0,0.00025205,6]
[345695538,1734426639946,-500.0,0.00025205,6]
[345695539,1734426639953,-2120.77,0.00025205,6]
[345695540,1734426639960,-500.0,0.00025205,6]
[345695541,1734426639966,-1300.08,0.00025205,6]
[345695542,1734426639974,-2520.34,0.00025205,6]
[345695543,1734426639981,-500.0,0.00025205,6]
[345695544,1734426639987,-955.17,0.00025205,6]
[345695545,1734426639993,-500.0,0.00025205,6]
[345695546,1734426640002,-13920.98,0.00025205,6]
[345695547,1734426640010,-500.0,0.00025205,6]
[345695548,1734426640016,-6976.34,0.00025205,6]
[345695549,1734426640024,-1830.31,0.00025205,6]
[345695550,1734426640034,-815.82,0.00025205,6]
[345695551,1734426640043,-500.0,0.00025205,6]
[345695552,1734426640054,-500.0,0.00025205,6]
[345695553,1734426640063,-500.0,0.00025205,6]
[345695554,1734426640073,-1948.13,0.00025205,6]
[345695555,1734426640082,-500.0,0.00025205,6]
[345695556,1734426640092,-2229.6,0.00025205,6]
[345695557,1734426640101,-500.0,0.00025205,6]
[345695558,1734426640111,-500.0,0.00025205,6]
[345695559,1734426640120,-8357.26,0.00025205,6]
[345695560,1734426640129,-567.53131986,0.00025205,6]
[345695561,1734426640138,-755.57,0.00025205,6]
[345695563,1734426640148,-1573.96,0.00025205,6]
[345695565,1734426640158,-500.0,0.00025205,6]
[345695567,1734426640168,-556.06,0.00025205,6]
[345695568,1734426640177,-1285.01,0.00025205,6]
[345695569,1734426640186,-500.0,0.00025205,6]
[345695570,1734426640195,-500.0,0.00025205,6]
[345695571,1734426640205,-11928.35,0.00025205,5]
[345695572,1734426640214,-1233.52,0.00025205,6]
[345695573,1734426640224,-696.73,0.00025205,6]
[345695574,1734426640235,-500.0,0.00025205,6]
[345695575,1734426640245,-500.0,0.00025205,6]
[345695577,1734426640256,-712.45,0.00025205,6]
[345695579,1734426640266,-9212.12,0.00025205,6]
[345695581,1734426640275,-609.90605462,0.00025205,6]
[345695583,1734426640284,-500.0,0.00025205,6]
[345695585,1734426640294,-890.33,0.00025205,6]
[345695587,1734426640304,-928.17,0.00025205,6]
[345695589,1734426640314,-557.17,0.00025205,6]
[345695591,1734426640324,-4871.69,0.00025205,6]
[345695593,1734426640333,-500.0,0.00025205,6]
[345695595,1734426640343,-199.12036975,0.00025208,2]
[345695597,1734426640352,-500.0,0.00025221,2]
[345695599,1734426640362,-461.53854762,0.00025242,2]
[345695601,1734426640372,-420.0,0.00025299,2]
[345695603,1734426640381,-9788.02,0.000253,2]
[345695605,1734426640390,-151.0,0.000253,15]
[345695607,1734426640399,-151.0,0.0002538,6]
[345695609,1734426640409,-151.0,0.000254,19]
[345695611,1734426640419,-151.0,0.000254,18]
[345695613,1734426640428,-500.0,0.00025479,6]
[345695615,1734426640438,-581.91,0.00025479,6]
[345695617,1734426640447,-3000.0,0.00025479,30]
[345695619,1734426640456,-500.0,0.00025479,6]
[345695621,1734426640466,-500.0,0.00025479,6]
[345695624,1734426640481,-500.0,0.00025479,6]
[345695626,1734426640491,-500.0,0.00025479,6]
[345695628,1734426640500,-500.0,0.00025479,6]
[345695630,1734426640510,-500.0,0.00025479,6]
[345695632,1734426640519,-500.0,0.00025479,6]
[345695634,1734426640528,-955.71,0.00025479,6]
[345695636,1734426640537,-736.04,0.00025479,6]
[345695638,1734426640546,-500.0,0.00025479,6]
[345695640,1734426640555,-500.0,0.00025479,6]
[345695642,1734426640565,-1902.19,0.00025479,6]
[345695644,1734426640574,-913.53,0.00025479,6]
[345695646,1734426640584,-500.0,0.00025479,6]
[345695648,1734426640598,-500.0,0.00025479,6]
[345695650,1734426640608,-500.0,0.00025479,6]
[345695652,1734426640617,-500.0,0.00025479,6]
[345695654,1734426640627,-500.0,0.00025479,6]
[345695656,1734426640636,-500.0,0.00025479,6]
[345695658,1734426640645,-500.0,0.00025479,6]
[345695660,1734426640655,-500.0,0.00025479,6]
[345695662,1734426640664,-1255.28,0.00025479,6]
[345695664,1734426640673,-500.0,0.00025479,6]
[345695666,1734426640683,-500.0,0.00025479,6]
[345695668,1734426640692,-500.0,0.00025479,6]
[345695670,1734426640701,-500.0,0.00025479,6]
[345695672,1734426640710,-500.0,0.00025479,6]
[345695674,1734426640719,-666.04,0.00025479,6]
[345695676,1734426640729,-500.0,0.00025479,6]
[345695678,1734426640738,-500.0,0.00025479,6]
[345695680,1734426640748,-500.0,0.00025479,6]
[345695682,1734426640758,-500.0,0.00025479,6]
[345695684,1734426640767,-1162.05,0.00025479,6]
[345695686,1734426640776,-500.0,0.00025479,6]
[345695688,1734426640785,-789.99,0.00025479,6]
[345695690,1734426640795,-500.0,0.00025479,6]
[345695692,1734426640804,-838.31,0.00025479,6]
[345695694,1734426640813,-500.0,0.00025479,6]
[345695696,1734426640823,-500.0,0.00025479,6]
[345695698,1734426640831,-856.48,0.00025479,6]
[345695700,1734426640841,-244.17,0.00025479,6]
[345695702,1734426640850,-1658.38,0.00025479,6]
[345695704,1734426640859,-453.61444525,0.00025479,6]
[345695706,1734426640868,-1867.7,0.00025479,6]
[345695708,1734426640877,-500.0,0.00025479,6]
[345695710,1734426640886,-500.0,0.00025479,6]
[345695712,1734426640894,-500.0,0.00025479,6]
[345695714,1734426640903,-500.0,0.00025479,6]
[345695716,1734426640912,-500.0,0.00025479,6]
[345695718,1734426640921,-500.0,0.00025479,6]
[345695720,1734426640929,-500.0,0.00025479,6]
[345695722,1734426640938,-1821.85,0.00025479,2]
[345695724,1734426640947,-1529.71,0.00025479,6]
[345695726,1734426640955,-835.55,0.00025479,6]
[345695728,1734426640964,-1852.27,0.00025479,6]
[345695730,1734426640974,-500.0,0.00025479,6]
[345695732,1734426640983,-1305.89,0.00025479,6]
[345695734,1734426640992,-1846.95,0.00025479,6]
[345695736,1734426641001,-703.85,0.00025479,6]
[345695738,1734426641011,-500.0,0.00025479,6]
[345695740,1734426641020,-500.0,0.00025479,6]
[345695742,1734426641029,-500.0,0.00025479,6]
[345695744,1734426641037,-500.0,0.00025479,6]
[345695746,1734426641045,-500.0,0.00025479,6]
[345695747,1734426641053,-500.0,0.00025479,6]
[345695750,1734426641061,-500.0,0.00025479,6]
[345695752,1734426641070,-510.99,0.00025479,6]
[345695754,1734426641079,-500.0,0.00025479,6]
[345695756,1734426641088,-1526.26,0.00025479,6]
[345695758,1734426641097,-538.11,0.00025479,6]
[345695760,1734426641106,-482.65542446,0.00025479,6]
[345695762,1734426641115,-1177.46,0.00025479,6]
[345695764,1734426641124,-500.0,0.00025479,6]
[345695766,1734426641133,-500.0,0.00025479,6]
[345695768,1734426641143,-500.0,0.00025479,6]
[345695770,1734426641153,-899.54,0.00025479,6]
[345695772,1734426641162,-500.0,0.00025479,6]
[345695774,1734426641172,-703.51,0.00025479,2]
[345695776,1734426641182,-500.0,0.00025479,6]
[345695778,1734426641191,-790.81,0.00025479,6]
[345695780,1734426641200,-502.35,0.00025479,6]
[345695782,1734426641210,-500.0,0.00025479,6]
[345695784,1734426641219,-1753.87,0.00025479,6]
[345695786,1734426641228,-500.0,0.00025479,6]
[345695788,1734426641241,-500.0,0.00025479,6]
[345695790,1734426641251,-265.69769856,0.00025479,6]
[345695791,1734426641260,-500.0,0.00025479,6]
[345695794,1734426641270,-500.0,0.00025479,6]
[345695795,1734426641280,-500.0,0.00025479,6]
[345695798,1734426641289,-2060.34,0.00025479,6]
[345695800,1734426641299,-500.0,0.00025479,6]
[345695802,1734426641309,-297.0,0.00025479,6]
[345695803,1734426641318,-500.0,0.00025479,6]
[345695806,1734426641328,-2075.79,0.00025479,6]
[345695808,1734426641338,-500.0,0.00025479,6]
[345695810,1734426641347,-1126.73,0.00025479,6]
[345695812,1734426641357,-597.17,0.00025479,6]
[345695814,1734426641366,-500.0,0.00025479,6]
[345695816,1734426641375,-1000.0,0.00025479,2]
[345695818,1734426641385,-1432.56,0.00025479,6]
[345695820,1734426641394,-1896.07,0.00025479,6]
[345695822,1734426641403,-1426.8,0.00025479,6]
[345695824,1734426641413,-1580.55,0.00025479,6]
[345695826,1734426641422,-1147.09,0.00025479,6]
[345695828,1734426641432,-2173.19,0.00025479,6]
[345695830,1734426641441,-1379.04,0.00025479,6]
[345695832,1734426641453,-893.35,0.00025479,6]
[345695834,1734426641462,-500.0,0.00025479,6]
[345695836,1734426641472,-1152.23,0.00025479,6]
[345695838,1734426641481,-953.55,0.00025479,6]
[345695840,1734426641490,-5415.24,0.00025479,6]
[345695842,1734426641502,-500.0,0.00025479,6]
[345695844,1734426641513,-1407.33,0.00025479,6]
[345695846,1734426641523,-741.17,0.00025479,6]
[345695848,1734426641533,-2256.7,0.00025479,6]
[345695850,1734426641543,-500.0,0.00025479,6]
[345695852,1734426641554,-500.0,0.00025479,6]